bitfinex-derivatives/quotes_SOLF0:USTF0_20260304
["timestamp","ask_amount","ask_price","bid_price","bid_amount"]
[1772665834279,3.45914854,91.25,91.206,19.05686021]
[1772665834280,3.45914854,91.24,91.206,19.05686021]
[1772665834681,26.83728976,91.247,91.206,19.05686021]
[1772665836481,26.83728976,91.247,91.207,28.92286021]
[1772665837079,26.83728976,91.247,91.209,28.92186021]
[1772665841280,26.83728976,91.247,91.209,19.05686021]
[1772665842285,3.45914854,91.24,91.209,19.05686021]
[1772665842982,9.862,91.243,91.209,19.05686021]
[1772665848488,9.861,91.249,91.209,19.05686021]
[1772665848990,9.861,91.249,91.21,9.865]
[1772665849191,9.861,91.249,91.211,17.47813324]
[1772665852393,9.86,91.255,91.215,17.47813324]
[1772665852591,16.87021777,91.258,91.215,17.47813324]
[1772665852792,3.45914854,91.25,91.215,17.47813324]
[1772665853187,3.45914854,91.24,91.204,17.47813324]
[1772665854093,16.72871854,91.248,91.204,17.47813324]
[1772665854296,9.862,91.244,91.205,9.866]
[1772665854596,9.862,91.244,91.206,17.47813324]
[1772665854995,9.862,91.242,91.206,17.47813324]
[1772665855194,16.60283674,91.243,91.207,9.866]
[1772665855496,16.60283674,91.243,91.207,27.34413324]
[1772665855891,16.60312281,91.242,91.2,9.866]
[1772665856092,20.06227135,91.24,91.201,17.47813324]
[1772665856898,9.862,91.238,91.201,17.47813324]
[1772665857197,16.61288597,91.237,91.201,17.47813324]
[1772665859398,16.61288597,91.237,91.203,17.47813324]
[1772665859601,3.45914854,91.24,91.203,17.47813324]
[1772665862803,9.862,91.239,91.203,17.47813324]
[1772665863002,16.53610146,91.238,91.203,17.47813324]
[1772665863199,19.99525,91.23,91.17,3.45914854]
[1772665863404,16.53643,91.219,91.178,17.47813324]
[1772665863898,16.53643,91.231,91.185,17.47813324]
[1772665864099,3.45914854,91.24,91.19,3.45914854]
[1772665864301,3.45914854,91.24,91.191,17.47813324]
[1772665865403,3.45914854,91.24,91.18,3.45914854]
[1772665865404,9.862,91.239,91.193,17.47813324]
[1772665866306,3.45914854,91.23,91.193,17.47813324]
[1772665866605,3.45914854,91.23,91.197,9.867]
[1772665867104,3.45914854,91.23,91.197,27.34513324]
[1772665867606,16.77340183,91.227,91.185,17.47813324]
[1772665868496,3.45914854,91.23,91.185,17.47813324]
[1772665868903,3.45914854,91.23,91.193,17.47813324]
[1772665871913,3.45914854,91.23,91.195,17.47813324]
[1772665872109,13.32114854,91.24,91.195,17.47813324]
[1772665873500,13.32114854,91.24,91.197,17.47813324]
[1772665874609,13.32211051,91.24,91.197,17.47813324]
[1772665878412,13.32211051,91.24,91.199,17.47813324]
[1772665879514,13.32211051,91.24,91.201,17.97404402]
[1772665880012,29.870778,91.24,91.201,17.97404402]
[1772665880814,9.862,91.238,91.201,17.97404402]
[1772665885717,16.3252559,91.249,91.203,17.97404402]
[1772665886116,3.46011051,91.24,91.203,17.97404402]
[1772665887412,3.46011051,91.24,91.205,9.866]
[1772665887919,16.29204643,91.237,91.203,17.97404402]
[1772665888808,16.29204643,91.237,91.205,9.866]
[1772665889016,16.29204643,91.237,91.205,28.23886828]
[1772665889216,3.46011051,91.24,91.206,18.37286828]
[1772665889816,3.46011051,91.24,91.208,9.866]
[1772665890018,3.46011051,91.24,91.206,18.37286828]
[1772665890721,25.73854064,91.239,91.206,18.37286828]
[1772665891715,15.87654064,91.239,91.206,18.37286828]
[1772665892015,9.862,91.246,91.208,18.37286828]
[1772665892214,19.33711249,91.25,91.208,18.37286828]
[1772665893521,19.33711249,91.25,91.21,18.37286828]
[1772665894827,3.46011051,91.24,91.21,18.37286828]
[1772665898126,9.862,91.238,91.21,18.37286828]
[1772665898722,3.46011051,91.22,91.197,18.37286828]
[1772665899122,3.46011051,91.23,91.197,18.37286828]
[1772665904833,3.46011051,91.22,91.186,18.37286828]
[1772665906332,3.46011051,91.22,91.188,18.37286828]
[1772665906528,24.6583467,91.229,91.188,18.37286828]
[1772665907135,24.6583467,91.229,91.191,18.37286828]
[1772665907736,9.862,91.238,91.197,9.867]
[1772665907935,9.862,91.238,91.198,18.37286828]
[1772665908135,3.46011051,91.24,91.198,18.37286828]
[1772665908635,9.861,91.252,91.212,17.27777125]
[1772665909827,3.46011051,91.25,91.212,17.27777125]
[1772665910430,3.46011051,91.25,91.215,17.27777125]
[1772665910727,3.46011051,91.23,91.181,17.27777125]
[1772665911133,3.46011051,91.22,91.187,17.27777125]
[1772665911734,3.46011051,91.21,91.187,17.27777125]
[1772665913934,3.46011051,91.22,91.187,17.27777125]
[1772665918647,24.71433484,91.219,91.173,17.27777125]
[1772665920548,9.865,91.212,91.176,17.27777125]
[1772665923349,9.864,91.219,91.177,17.27777125]
[1772665925646,15.01185675,91.221,91.18,17.27777125]
[1772665925846,9.864,91.226,91.18,20.73788176]
[1772665926952,9.864,91.226,91.189,17.27777125]
[1772665931355,9.864,91.22,91.189,17.27777125]
[1772665931650,13.32411051,91.22,91.189,17.27777125]
[1772665936456,9.864,91.22,91.189,17.27777125]
[1772665937256,9.864,91.227,91.189,17.27777125]
[1772665937650,15.22555063,91.229,91.189,17.27777125]
[1772665938356,9.864,91.221,91.189,17.27777125]
[1772665940558,25.08855063,91.229,91.189,17.27777125]
[1772665940859,15.22555063,91.229,91.189,17.27777125]
[1772665942358,9.864,91.223,91.189,17.27777125]
[1772665944055,15.54772442,91.216,91.177,28.04001092]
[1772665944257,15.54772442,91.216,91.177,18.17101092]
[1772665944760,9.865,91.213,91.177,18.17101092]
[1772665945858,9.864,91.22,91.178,18.17101092]
[1772665947062,9.865,91.215,91.178,18.17101092]
[1772665949764,9.865,91.215,91.18,18.9504936]
[1772665953165,9.865,91.215,91.182,18.9504936]
[1772665953862,9.864,91.222,91.184,18.9504936]
[1772665955761,9.865,91.218,91.184,18.9504936]
[1772665955964,15.65726179,91.217,91.184,18.9504936]
[1772665957461,9.865,91.216,91.184,18.9504936]
[1772665962964,9.865,91.211,91.17,18.9504936]
[1772665963671,3.46092502,91.21,91.17,18.9504936]
[1772665964470,3.46092502,91.21,91.172,18.9504936]
[1772665964667,9.865,91.211,91.172,18.9504936]
[1772665965371,9.865,91.211,91.174,18.9504936]
[1772665965574,3.46092502,91.21,91.174,18.9504936]
[1772665970979,3.46092502,91.2,91.174,18.9504936]
[1772665971470,22.21246473,91.18,91.112,27.20272194]
[1772665971676,3.46092502,91.17,91.11,3.46092502]
[1772665971870,3.46092502,91.17,91.111,1.90903555]
[1772665972772,3.46092502,91.16,91.11,3.46092502]
[1772665973170,3.46092502,91.16,91.101,1.90915076]
[1772665973371,3.46092502,91.16,91.101,18.16031215]
[1772665973775,3.46092502,91.14,91.113,18.16031215]
[1772665974276,3.46092502,91.17,91.121,18.16031215]
[1772665974476,3.46092502,91.18,91.121,18.16031215]
[1772665974676,3.46092502,91.17,91.121,18.16031215]
[1772665974877,18.75153971,91.169,91.121,18.16031215]
[1772665975378,18.75153971,91.169,91.133,18.16031215]
[1772665975578,9.869,91.178,91.133,18.16031215]
[1772665975881,22.21246473,91.18,91.135,18.16031215]
[1772665976679,18.75153971,91.18,91.141,18.16031215]
[1772665977072,28.62053971,91.18,91.141,18.16031215]
[1772665977273,32.08146473,91.18,91.141,18.16031215]
[1772665977875,18.75153971,91.179,91.132,9.874]
[1772665978172,13.32992502,91.18,91.132,9.874]
[1772665978173,18.75153971,91.169,91.132,9.874]
[1772665978778,3.46092502,91.18,91.137,9.873]
[1772665979082,28.62053971,91.179,91.137,9.873]
[1772665982078,18.75153971,91.178,91.137,9.873]
[1772665982273,18.75153971,91.178,91.061,27.20272194]
[1772665982274,18.75153971,91.159,91.108,18.16031215]
[1772665982478,3.46092502,91.13,91.096,18.16031215]
[1772665982677,3.46092502,91.13,91.066,18.16031215]
[1772665982875,18.75153971,91.129,91.076,18.16031215]
[1772665983078,3.46092502,91.14,91.08,3.46092502]
[1772665983276,3.46092502,91.14,91.096,18.16031215]
[1772665983478,18.75153971,91.129,91.08,3.46092502]
[1772665983683,3.46092502,91.12,91.08,18.16031215]
[1772665984585,18.75153971,91.109,91.06,21.62123717]
[1772665985480,3.46092502,91.12,91.071,18.16031215]
[1772665985788,18.75153971,91.138,91.081,18.16031215]
[1772665985983,18.75153971,91.148,91.111,9.876]
[1772665986282,18.75153971,91.163,91.111,18.16031215]
[1772665986486,18.75153971,91.163,91.12,21.62123717]
[1772665986884,18.75153971,91.163,91.12,18.16031215]
[1772665987485,18.75153971,91.159,91.11,3.46092502]
[1772665987785,18.75153971,91.159,91.107,18.16031215]
[1772665988179,18.75153971,91.159,91.066,19.762]
[1772665988180,18.75153971,91.159,91.12,9.875]
[1772665988580,9.872,91.151,91.111,18.16031215]
[1772665988778,22.21246473,91.15,91.101,9.877]
[1772665988978,22.21246473,91.15,91.102,18.16031215]
[1772665989986,18.75153971,91.146,91.101,9.877]
[1772665990488,3.46092502,91.14,91.101,9.877]
[1772665991187,18.75153971,91.146,91.108,9.876]
[1772665991488,18.75153971,91.16,91.111,18.16031215]
[1772665993384,22.21246473,91.16,91.114,9.876]
[1772665993787,18.75153971,91.149,91.098,18.16031215]
[1772665993986,18.75153971,91.149,91.09,3.46092502]
[1772665993987,18.75153971,91.139,91.09,3.46092502]
[1772665994283,18.75153971,91.139,91.09,18.16031215]
[1772665994489,18.75153971,91.129,91.09,18.16031215]
[1772665994887,9.874,91.128,91.09,18.16031215]
[1772665995288,18.75153971,91.129,91.09,18.16031215]
[1772665995491,3.46092502,91.14,91.092,18.16031215]
[1772665996282,3.46092502,91.14,91.093,9.878]
[1772665996485,3.46092502,91.14,91.093,28.03831215]
[1772665997490,18.75153971,91.138,91.093,28.03831215]
[1772665998084,18.75153971,91.138,91.093,9.878]
[1772665998390,18.75153971,91.134,91.085,9.879]
[1772665999293,18.75153971,91.134,91.085,28.68036918]
[1772665999489,9.874,91.131,91.089,9.878]
[1772665999691,18.75153971,91.134,91.09,18.80136918]
[1772666000197,18.75153971,91.134,91.09,22.269256]
[1772666000398,3.46788682,91.17,91.116,18.80136918]
[1772666000591,3.46788682,91.16,91.116,18.80136918]
[1772666000796,20.85074297,91.16,91.116,18.80136918]
[1772666001397,30.72174297,91.16,91.116,18.80136918]
[1772666001598,17.38285615,91.159,91.116,18.80136918]
[1772666001897,17.38285615,91.159,91.101,18.80136918]
[1772666003393,9.872,91.15,91.107,9.876]
[1772666003598,17.38285615,91.159,91.107,9.876]
[1772666004203,17.38285615,91.159,91.114,18.80136918]
[1772666005402,17.38285615,91.159,91.121,9.875]
[1772666009596,17.38285615,91.159,91.114,18.80136918]
[1772666010204,17.38285615,91.159,91.116,9.875]
[1772666011205,19.05835349,91.158,91.116,9.875]
[1772666012305,96.0,91.183,91.08,19.759]
[1772666012306,3.46788682,91.17,91.128,18.95132861]
[1772666012510,96.0,91.183,91.131,18.95132861]
[1772666012911,3.46788682,91.19,91.131,18.95132861]
[1772666013206,9.869,91.179,91.14,9.873]
[1772666015008,3.46788682,91.18,91.14,28.82432861]
[1772666015314,19.05835349,91.189,91.146,28.82332861]
[1772666015509,19.05835349,91.189,91.147,18.95132861]
[1772666016018,19.05835349,91.204,91.159,18.95132861]
[1772666018116,9.865,91.218,91.162,18.95132861]
[1772666018712,28.92335349,91.218,91.162,18.95132861]
[1772666019515,28.92335349,91.218,91.171,9.87]
[1772666019711,28.92335349,91.218,91.172,18.95132861]
[1772666020916,3.46788682,91.21,91.172,18.95132861]
[1772666021516,3.46788682,91.21,91.176,9.869]
[1772666023120,3.46788682,91.21,91.176,28.82032861]
[1772666023415,3.46788682,91.21,91.176,18.95132861]
[1772666023620,96.0,91.254,91.118,19.751]
[1772666023621,22.52624031,91.2,91.141,18.95132861]
[1772666024221,22.52624031,91.2,91.159,9.871]
[1772666024421,3.46788682,91.19,91.159,9.871]
[1772666025021,19.05835349,91.2,91.159,9.871]
[1772666025222,3.46788682,91.19,91.159,9.871]
[1772666026628,3.46788682,91.19,91.151,28.82332861]
[1772666026830,22.52624031,91.2,91.152,18.95132861]
[1772666027823,22.52624031,91.2,91.16,9.871]
[1772666029530,3.46788682,91.21,91.165,9.87]
[1772666029729,3.46788682,91.21,91.166,17.46978766]
[1772666030531,3.46788682,91.21,91.169,9.87]
[1772666030731,20.57086673,91.21,91.169,9.87]
[1772666031231,3.46788682,91.2,91.169,9.87]
[1772666036034,20.57086673,91.21,91.169,9.87]
[1772666038335,3.46788682,91.2,91.169,9.87]
[1772666038536,3.46788682,91.2,91.166,17.46978766]
[1772666039236,3.46788682,91.2,91.167,9.87]
[1772666042336,3.46788682,91.2,91.173,9.869]
[1772666042538,3.46788682,91.2,91.166,17.46978766]
[1772666044136,17.10297991,91.199,91.156,9.871]
[1772666044337,3.46788682,91.19,91.156,9.871]
[1772666044742,3.46788682,91.18,91.156,9.871]
[1772666044943,3.46788682,91.18,91.153,17.46978766]
[1772666045540,3.46788682,91.18,91.154,9.871]
[1772666045741,3.46788682,91.2,91.153,17.46978766]
[1772666045946,17.10297991,91.203,91.153,17.46978766]
[1772666046142,17.10297991,91.259,91.18,3.46788682]
[1772666046350,20.57086673,91.24,91.181,17.46978766]
[1772666046848,9.863,91.23,91.19,9.867]
[1772666047349,13.33088682,91.23,91.19,9.867]
[1772666049552,9.863,91.23,91.191,17.46978766]
[1772666051155,3.46788682,91.23,91.195,17.46978766]
[1772666051554,3.46788682,91.22,91.181,17.46978766]
[1772666052256,3.46788682,91.22,91.187,9.868]
[1772666052661,3.46788682,91.22,91.181,17.46978766]
[1772666052861,20.57086673,91.23,91.188,17.46978766]
[1772666053555,20.57086673,91.23,91.191,17.46978766]
[1772666055359,9.864,91.227,91.191,17.46978766]
[1772666055762,20.57086673,91.23,91.191,17.46978766]
[1772666055966,3.46788682,91.25,91.208,17.46978766]
[1772666056161,3.46788682,91.24,91.208,17.46978766]
[1772666056562,3.46788682,91.23,91.2,9.866]
[1772666058565,3.46031803,91.23,91.2,9.866]
[1772666058759,3.46031803,91.23,91.194,17.46978766]
[1772666060770,18.69025301,91.264,91.201,18.13672616]
[1772666061067,268.79093374,91.26,91.201,18.13672616]
[1772666062066,268.79093374,91.26,91.215,18.13672616]
[1772666062564,268.79093374,91.26,91.22,18.13672616]
[1772666062870,3.46031803,91.28,91.22,21.59704419]
[1772666063464,3.46031803,91.29,91.242,18.13672616]
[1772666063669,3.46031803,91.28,91.242,18.13672616]
[1772666064469,3.46031803,91.28,91.245,9.862]
[1772666064669,3.46031803,91.28,91.246,18.13672616]
[1772666067071,3.46031803,91.28,91.249,9.861]
[1772666067369,3.46031803,91.28,91.25,18.01693889]
[1772666068474,3.46031803,91.28,91.251,9.861]
[1772666068672,3.46031803,91.28,91.25,18.01693889]
[1772666071171,9.857,91.288,91.25,18.01693889]
[1772666071373,3.46031803,91.27,91.221,18.01693889]
[1772666071575,3.46031803,91.26,91.221,18.01693889]
[1772666072473,3.46031803,91.26,91.227,27.87993889]
[1772666072674,13.31931803,91.27,91.227,27.87993889]
[1772666072878,13.31931803,91.27,91.228,18.01693889]
[1772666076580,3.46031803,91.27,91.228,18.01693889]
[1772666077182,3.46031803,91.27,91.23,9.863]
[1772666077385,3.46031803,91.27,91.231,18.01693889]
[1772666078379,3.46031803,91.27,91.232,27.87993889]
[1772666078984,3.46031803,91.27,91.237,9.862]
[1772666080186,3.46031803,91.27,91.233,18.01693889]
[1772666081785,3.46031803,91.26,91.224,18.01693889]
[1772666081984,18.06365002,91.268,91.224,18.01693889]
[1772666082281,3.46031803,91.27,91.224,18.01693889]
[1772666082684,3.46031803,91.27,91.234,9.863]
[1772666084382,3.46031803,91.27,91.227,18.01693889]
[1772666085786,9.859,91.269,91.227,18.01693889]
[1772666089887,9.859,91.269,91.229,17.01576959]
[1772666090793,3.46031803,91.25,91.215,17.01576959]
[1772666091792,13.32131803,91.25,91.215,17.01576959]
[1772666092796,3.46031803,91.25,91.215,17.01576959]
[1772666093094,3.46031803,91.26,91.218,17.01576959]
[1772666094392,3.46031803,91.26,91.219,9.864]
[1772666094598,3.46031803,91.26,91.22,17.01576959]
[1772666094793,3.46031803,91.28,91.22,20.47608762]
[1772666095295,20.12160256,91.28,91.22,20.47608762]
[1772666096496,9.858,91.274,91.232,17.01576959]
[1772666096995,3.46031803,91.27,91.232,17.01576959]
[1772666098392,16.66128453,91.28,91.235,17.01576959]
[1772666098591,20.12160256,91.28,91.235,17.01576959]
[1772666098789,3.46031803,91.27,91.235,17.01576959]
[1772666099397,16.66128453,91.269,91.231,9.863]
[1772666100397,16.66128453,91.269,91.231,26.87876959]
[1772666100799,16.66128453,91.269,91.232,17.01576959]
[1772666102402,16.66128453,91.269,91.234,17.01576959]
[1772666102794,3.46031803,91.27,91.234,17.01576959]
[1772666102999,9.858,91.279,91.234,17.01576959]
[1772666103198,3.46031803,91.27,91.234,17.01576959]
[1772666103402,3.46031803,91.26,91.219,17.01576959]
[1772666103598,3.46031803,91.26,91.22,17.01576959]
[1772666104502,3.46031803,91.26,91.225,17.01576959]
[1772666105602,3.46031803,91.26,91.227,9.864]
[1772666105799,26.52028453,91.269,91.228,17.01576959]
[1772666106406,3.46031803,91.27,91.232,17.01576959]
[1772666107104,9.858,91.276,91.235,17.01576959]
[1772666108609,16.66128453,91.294,91.238,17.01576959]
[1772666108810,3.46031803,91.28,91.238,17.01576959]
[1772666109311,3.46031803,91.29,91.245,17.01576959]
[1772666109506,8.36322468,91.293,91.245,17.01576959]
[1772666109812,3.46031803,91.31,91.261,17.01576959]
[1772666111110,3.46031803,91.33,91.276,17.01576959]
[1772666112009,3.46031803,91.33,91.285,17.01576959]
[1772666113508,3.46031803,91.33,91.288,26.87276959]
[1772666113708,3.46031803,91.33,91.289,17.01576959]
[1772666114409,3.46031803,91.33,91.291,9.857]
[1772666114605,3.46031803,91.34,91.292,17.01576959]
[1772666114809,20.12160256,91.34,91.292,17.01576959]
[1772666115011,16.66128453,91.358,91.293,17.01576959]
[1772666115308,3.46031803,91.34,91.293,17.01576959]
[1772666116414,3.46031803,91.32,91.293,17.01576959]
[1772666116613,3.46031803,91.33,91.293,17.01576959]
[1772666117811,3.46031803,91.32,91.28,17.01576959]
[1772666118009,3.46031803,91.31,91.28,17.01576959]
[1772666118413,3.46031803,91.32,91.28,17.01576959]
[1772666120520,3.45362218,91.32,91.28,17.01576959]
[1772666123121,3.45362218,91.3,91.268,14.42433018]
[1772666123320,3.45362218,91.29,91.255,14.42433018]
[1772666123926,3.45362218,91.3,91.258,14.42433018]
[1772666124520,3.45362218,91.29,91.258,14.42433018]
[1772666124715,14.53421861,91.308,91.258,14.42433018]
[1772666124916,3.45362218,91.3,91.258,14.42433018]
[1772666125121,3.45362218,91.29,91.258,14.42433018]
[1772666126219,3.45362218,91.3,91.258,14.42433018]
[1772666126427,8.95334522,91.359,91.258,14.42433018]
[1772666126428,3.45362218,91.31,91.26,3.45362218]
[1772666126726,3.45362218,91.32,91.271,14.42433018]
[1772666127026,3.45362218,91.33,91.271,14.42433018]
[1772666128520,3.45362218,91.33,91.284,14.42433018]
[1772666129520,3.45362218,91.33,91.287,9.857]
[1772666129721,3.45362218,91.33,91.288,14.42433018]
[1772666129921,3.45362218,91.32,91.288,14.42433018]
[1772666130416,3.45362218,91.33,91.288,14.42433018]
[1772666132417,3.45362218,91.33,91.29,9.857]
[1772666132624,3.45362218,91.33,91.291,14.82161501]
[1772666133223,14.53421861,91.335,91.28,3.45362218]
[1772666133224,14.53421861,91.335,91.293,14.82161501]
[1772666133616,3.45362218,91.34,91.293,14.82161501]
[1772666134018,15.22818859,91.346,91.303,14.82161501]
[1772666134220,96.0,91.366,91.276,14.82161501]
[1772666134221,3.45362218,91.32,91.276,14.82161501]
[1772666135420,3.45362218,91.32,91.285,14.82161501]
[1772666136118,15.22818859,91.327,91.286,9.857]
[1772666137625,3.45362218,91.32,91.285,14.82161501]
[1772666139824,3.45362218,91.32,91.285,24.67861501]
[1772666140028,15.22818859,91.327,91.286,14.82161501]
[1772666140826,3.45362218,91.32,91.286,14.82161501]
[1772666141223,15.22818859,91.319,91.272,14.82161501]
[1772666141429,3.45362218,91.3,91.26,14.82161501]
[1772666142531,3.45362218,91.29,91.252,9.861]
[1772666144827,3.45362218,91.29,91.246,14.82161501]
[1772666145231,3.45362218,91.3,91.251,14.82161501]
[1772666145930,3.45362218,91.3,91.234,184.97917493]
[1772666145931,3.45362218,91.3,91.255,14.82161501]
[1772666146932,3.45362218,91.28,91.241,14.82161501]
[1772666148631,3.45362218,91.28,91.243,9.862]
[1772666149529,9.857,91.287,91.243,9.862]
[1772666149726,9.857,91.287,91.243,24.24327036]
[1772666150929,23.18569946,91.287,91.243,24.24327036]
[1772666151134,9.857,91.285,91.243,24.24327036]
[1772666151333,3.45362218,91.28,91.243,24.24327036]
[1772666151528,3.45362218,91.27,91.235,9.863]
[1772666151733,16.78232164,91.27,91.23,14.38127036]
[1772666151932,13.27473013,91.337,91.21,3.45362218]
[1772666151933,3.45362218,91.26,91.217,14.38127036]
[1772666152131,3.45362218,91.26,91.22,9.864]
[1772666153835,13.32869946,91.269,91.221,14.38127036]
[1772666154633,13.32869946,91.269,91.234,9.863]
[1772666155332,23.18769946,91.267,91.221,14.38127036]
[1772666155635,3.45362218,91.26,91.221,14.38127036]
[1772666156137,13.32869946,91.266,91.221,14.38127036]
[1772666158935,3.45362218,91.25,91.201,14.38127036]
[1772666159338,3.45362218,91.25,91.212,9.865]
[1772666160937,3.45362218,91.24,91.204,9.866]
[1772666161135,3.45362218,91.24,91.201,14.38127036]
[1772666161536,3.45362218,91.26,91.209,14.38127036]
[1772666161740,13.32869946,91.259,91.209,14.38127036]
[1772666162544,3.45362218,91.26,91.209,14.38127036]
[1772666162545,13.32869946,91.255,91.211,9.865]
[1772666163143,3.45362218,91.25,91.211,9.865]
[1772666163341,3.45362218,91.26,91.218,24.24527036]
[1772666163541,16.78232164,91.28,91.221,14.38127036]
[1772666164042,16.78232164,91.28,91.238,9.862]
[1772666164547,9.858,91.279,91.238,9.862]
[1772666165044,23.18669946,91.279,91.238,9.862]
[1772666165246,9.858,91.275,91.234,14.38127036]
[1772666165644,13.32869946,91.278,91.234,14.38127036]
[1772666166146,3.45362218,91.27,91.234,14.38127036]
[1772666166347,3.45362218,91.27,91.241,9.862]
[1772666166547,13.32869946,91.278,91.241,9.862]
[1772666167248,3.45362218,91.27,91.234,14.38127036]
[1772666167647,3.45362218,91.26,91.225,9.864]
[1772666168250,13.32869946,91.269,91.225,9.864]
[1772666168544,3.45362218,91.26,91.225,9.864]
[1772666169048,3.45362218,91.26,91.217,14.38127036]
[1772666169049,3.45362218,91.26,91.217,24.24627036]
[1772666169845,3.45362218,91.26,91.218,14.38127036]
[1772666170846,3.45362218,91.23,91.156,14.38127036]
[1772666171046,3.45362218,91.23,91.181,14.38127036]
[1772666171243,3.45362218,91.24,91.181,14.38127036]
[1772666171446,3.45362218,91.24,91.198,14.38127036]
[1772666172545,13.31562218,91.24,91.198,14.38127036]
[1772666172940,3.45362218,91.24,91.198,14.38127036]
[1772666173350,13.32869946,91.271,91.198,14.38127036]
[1772666173543,13.32869946,91.295,91.241,14.38127036]
[1772666173743,13.32869946,91.295,91.243,14.38127036]
[1772666175146,13.32869946,91.295,91.245,9.861]
[1772666175849,13.32869946,91.295,91.252,9.861]
[1772666178253,3.45362218,91.3,91.26,14.38127036]
[1772666178944,13.32869946,91.309,91.26,14.38127036]
[1772666178945,13.32869946,91.309,91.26,17.83489254]
[1772666179148,3.45362218,91.32,91.26,17.83489254]
[1772666179345,3.45362218,91.33,91.278,11.56371064]
[1772666179554,12.24833558,91.338,91.281,11.56371064]
[1772666179746,3.45362218,91.32,91.281,11.56371064]
[1772666180352,12.24833558,91.35,91.281,11.56371064]
[1772666180549,12.24833558,91.35,91.169,27.14988367]
[1772666180550,12.24833558,91.357,91.301,11.56371064]
[1772666180754,3.45140313,91.33,91.287,11.56371064]
[1772666180951,12.24833558,91.329,91.28,9.858]
[1772666181252,3.45140313,91.32,91.281,11.56371064]
[1772666181548,3.45140313,91.29,91.241,11.56371064]
[1772666181752,3.45140313,91.28,91.241,11.56371064]
[1772666182351,3.45140313,91.27,91.241,11.56371064]
[1772666182953,3.45140313,91.28,91.241,11.56371064]
[1772666184056,3.45140313,91.29,91.243,11.56371064]
[1772666185059,3.45140313,91.29,91.245,11.56371064]
[1772666185451,9.853,91.322,91.245,11.56371064]
[1772666185649,9.853,91.322,91.251,11.56371064]
[1772666185650,3.45140313,91.31,91.251,11.56371064]
[1772666186053,3.45140313,91.3,91.251,11.56371064]
[1772666186653,12.24833558,91.321,91.251,11.56371064]
[1772666186654,3.45140313,91.31,91.251,11.56371064]
[1772666187055,3.45140313,91.31,91.205,153.476]
[1772666187056,3.45140313,91.31,91.261,12.22443337]
[1772666187456,3.45140313,91.3,91.261,12.22443337]
[1772666190654,3.45140313,91.29,91.261,12.22443337]
[1772666190860,3.45140313,91.29,91.25,9.861]
[1772666191259,3.45140313,91.29,91.246,12.22443337]
[1772666193957,3.45140313,91.28,91.246,12.22443337]
[1772666194154,96.0,91.35,91.232,12.22443337]
[1772666194155,3.45140313,91.27,91.232,12.22443337]
[1772666194857,3.45140313,91.28,91.236,12.22443337]
[1772666196457,3.45140313,91.28,91.239,9.862]
[1772666197162,3.45140313,91.27,91.239,9.862]
[1772666197457,3.45140313,91.27,91.236,12.22443337]
[1772666197662,9.858,91.283,91.236,12.22443337]
[1772666197663,3.45140313,91.26,91.236,12.22443337]
[1772666197958,3.45140313,91.27,91.236,12.22443337]
[1772666198463,3.45140313,91.28,91.236,12.22443337]
[1772666199361,3.45140313,91.3,91.245,12.22443337]
[1772666199556,3.45140313,91.3,91.24,3.45140313]
[1772666199557,3.45140313,91.3,91.251,12.22443337]
[1772666199857,11.91406195,91.313,91.251,12.22443337]
[1772666199858,3.45140313,91.31,91.251,12.22443337]
[1772666200464,21.76806195,91.313,91.26,12.22443337]
[1772666200664,11.91406195,91.312,91.26,12.22443337]
[1772666201067,9.855,91.311,91.262,9.86]
[1772666201267,21.76906195,91.311,91.262,9.86]
[1772666201866,11.91406195,91.31,91.262,9.86]
[1772666202068,9.855,91.306,91.26,12.22443337]
[1772666202364,21.76906195,91.306,91.26,12.22443337]
[1772666203268,11.91406195,91.306,91.261,12.22443337]
[1772666204369,11.91406195,91.306,91.265,9.859]
[1772666206268,11.91406195,91.306,91.271,9.859]
[1772666206669,11.91406195,91.306,91.266,12.22443337]
[1772666207572,11.91406195,91.302,91.252,12.22443337]
[1772666208473,11.91406195,91.302,91.253,9.861]
[1772666208474,9.856,91.298,91.253,9.861]
[1772666208673,11.40778448,91.297,91.253,9.861]
[1772666208868,11.40778448,91.297,91.253,21.69756884]
[1772666209372,9.856,91.295,91.254,11.83656884]
[1772666211078,11.40778448,91.297,91.255,9.86]
[1772666211271,9.855,91.303,91.256,11.83656884]
[1772666213978,9.855,91.303,91.259,11.83656884]
[1772666214179,11.40778448,91.31,91.259,11.83656884]
[1772666214675,11.40778448,91.31,91.261,9.86]
[1772666214881,11.40778448,91.31,91.262,11.83656884]
[1772666216378,11.40778448,91.308,91.263,9.86]